Cogmind - Beta 16.1 --- EXPLORER MODE // 2026.02.21 @ 19:40:53 Player: NeoBioHazard Result: Destroyed by H7-DR5(R) with Subdweller Beam Cannon Performance ------------- Evolutions (0) 0 Regions Visited (3) 600 Robots Destroyed (31) 155 Value Destroyed (717) 717 Prototype IDs (0) 0 Alien Tech Used (0) 0 Bonus (0) 0 TOTAL SCORE: 1472 Bonus ------- None Cogmind --------- Core Integrity 0/250 Matter 300/300 Energy 100/100 System Corruption 0% Temperature Hot (204) Movement Core (150) Ox2 Location -10/Subcaves Parts ------- > --- POWER (1) -------- (None) > --- PROPULSION (2) --- (None) > --- UTILITY (3) ------ Sensor Array Signal Interpreter Utility Shielding > --- WEAPON (2) ------- Maul Axe > --- INVENTORY (5) ---- Ion Engine Medium Storage Unit Beam Rifle Beam Rifle Mini Grenade Launcher Peak State ------------ > --- POWER ------------ Ion Engine > --- PROPULSION ------- Aluminum Leg Aluminum Leg > --- UTILITY ---------- Sensor Array Signal Interpreter Utility Shielding > --- WEAPON ----------- Maul Axe > --- INVENTORY -------- Ion Engine Medium Storage Unit Beam Rifle Beam Rifle Mini Grenade Launcher [Rating: 11] Favorites ----------- Power Ion Engine Engine Ion Engine Propulsion Aluminum Leg Leg Aluminum Leg Utility Utility Shielding Device Sensor Array Processor Signal Interpreter Protection Utility Shielding Weapon Maul Energy Gun Medium Laser Ballistic Gun Light Assault Rifle Impact Weapon Maul Slashing Weapon Axe Build | -11 -10 -10 -10 ------- Run | Yrd Mat Min Sub Slots Evolved 1 | . 1 . . Power . | . . . . Propulsion . | . . . . Utility 1 | . 1 . . Weapon . | . . . . Parts Attached 17 | 7 9 1 . Power 2 | 1 1 . . Engine 2 | 1 1 . . Core . | . . . . Reactor . | . . . . Propulsion 5 | 2 3 . . Treads . | . . . . Leg 5 | 2 3 . . Wheel . | . . . . Hover . | . . . . Flight . | . . . . Utility 4 | 1 3 . . Device 2 | . 2 . . Storage . | . . . . Processor 1 | . 1 . . Hackware . | . . . . Protection 1 | 1 . . . Artifact . | . . . . Weapon 6 | 3 2 1 . Energy Gun 1 | 1 . . . Energy Cannon . | . . . . Ballistic Gun 2 | 2 . . . Ballistic Cannon . | . . . . Launcher . | . . . . Special Weapon . | . . . . Impact Weapon 2 | . 2 . . Slashing Weapon 1 | . . 1 . Piercing Weapon . | . . . . Special Melee Weapon . | . . . . Unidentified Prototypes . | . . . . Parts Lost 3 | . . . 3 Power 1 | . . . 1 Propulsion 2 | . . . 2 Utility . | . . . . Weapon . | . . . . Highest Loss Streak 2 | . . . 2 To Critical Strikes . | . . . . Average Backups 4 | 1 4 5 5 Power . | . 1 1 1 Propulsion . | . . . . Utility 1 | 1 1 1 1 Weapon 2 | . 2 3 3 Tool/Special . | . . . . Unused Backups 6 | . 2 . 4 Power 1 | . 1 . . Propulsion . | . . . . Utility 2 | . 1 . 1 Weapon 3 | . . . 3 Tool/Special . | . . . . Average Slot Usage (%) 98 | . 98 100 97 Engine 11 | . 12 12 11 Leg 24 | . 25 25 22 Device 11 | . 11 12 12 Processor 11 | . 11 12 12 Protection 12 | . 12 12 12 Impact Weapon 20 | . 24 21 12 Slashing Weapon 4 | . . 3 12 Peak Build Rating 11 | 6 10 11 11 Average Rating 10 | 4 9 10 10 On Entrance 6 | . 6 10 11 Avg Prop Armor Cover (%) . | . . . . Naked Turns . | . . . . Heaviest Build 13 | 9 13 13 13 Greatest Support 20 | 20 20 20 20 Greatest Overweight (x) 4 | 1 . . 4 Average Overweight (x) . | . . . . Largest Inventory Capacity 5 | 5 5 5 5 Average Capacity 5 | 5 5 5 5 Most Carried 5 | 3 5 5 5 Average Carried 4 | 1 4 5 5 Final Capacity 5 | 5 5 5 5 Final Carried 5 | 3 5 5 5 Class Distribution -------------------- 100% | Hacker-Mutant Dominant Class ---------------- Hacker-Mutant | -10/Materials Hacker-Mutant | -10/Mines Hacker-Mutant | -10/Subcaves Resources | -11 -10 -10 -10 ----------- Run | Yrd Mat Min Sub Matter Collected 380 | 233 117 30 . Remotely . | . . . . Salvage Created 991 | . 466 233 292 Parts 24 | . 11 2 11 Haulers Intercepted . | . . . . Recyclers Shooed . | . . . . Parts Field Recycled . | . . . . Retrieved Matter . | . . . . Parts Self-Destructed . | . . . . Prevented . | . . . . Parts Restored . | . . . . Kills | -11 -10 -10 -10 ------- Run | Yrd Mat Min Sub Combat Hostiles Destroyed 21 | . 10 2 9 Melee 17 | . 6 2 9 Classes Destroyed 10 | . 5 3 2 Worker 2 | . . 2 . Builder 1 | . . 1 . Tunneler 1 | . . 1 . Recycler 3 | . 2 1 . Mechanic 1 | . 1 . . Watcher 2 | . 2 . . Swarmer 7 | . 3 . 4 Grunt 9 | . 7 2 . Sentry 1 | . . . 1 Subdweller 4 | . . . 4 Best Kill Streak 6 | . 6 4 3 Combat Bots Only 3 | . 2 2 3 Max Kills in Single Turn 2 | . 2 1 2 Gunslinging . | . . . . Exploded . | . . . . Melee 2 | . 1 1 2 Uniques/NPCs Destroyed . | . . . . Combat | -11 -10 -10 -10 -------- Run | Yrd Mat Min Sub Hostile Shots Fired 124 | . 55 7 62 Missed 37 | . 20 2 15 Hits 87 | . 35 5 47 Projectile 87 | . 35 5 47 Critical Strikes 3 | . . . 3 Damage Taken 720 | . 224 54 442 Core 255 | . 72 10 173 Absorbed by Shields . | . . . . Redirected to Shielding 3 | . 1 . 2 Ignored by Resistances 463 | . 153 36 274 Core Remaining (%) 100 | 100 . . . Volleys Fired . | . . . . Largest . | . . . . Hottest . | . . . . Shots Fired . | . . . . Gun . | . . . . Cannon . | . . . . Launcher . | . . . . Special . | . . . . Kinetic . | . . . . Thermal . | . . . . Explosive . | . . . . Electromagnetic . | . . . . Robot Hit Streak . | . . . . Robot Miss Streak . | . . . . Penetration Max . | . . . . Secondary Targets . | . . . . Shots Hit Robots 63 | . 31 10 22 Core Hits 13 | . 5 . 8 Critical Kills 2 | . 2 . . Critical Parts Destroyed 6 | . 2 3 1 Critical Strikes 9 | . 4 3 2 Smash 8 | . 4 3 1 Sever 1 | . . . 1 Melee Attacks 82 | . 43 11 28 Impact 60 | . 43 11 6 Slashing 22 | . . . 22 Piercing . | . . . . Sneak Attacks 9 | . 3 6 . Combat Hostiles . | . . . . Follow-up Attacks 5 | . 1 . 4 Damage Inflicted 2926 | . 1471 668 787 Guns . | . . . . Cannons . | . . . . Explosions . | . . . . Melee 2926 | . 1471 668 787 Ramming . | . . . . Kinetic . | . . . . Thermal . | . . . . Explosive . | . . . . Electromagnetic . | . . . . Impact 2277 | . 1471 668 138 Slashing 649 | . . . 649 Piercing . | . . . . Highest Corruption . | . . . . Average Corruption . | . . . . Corruption Purged . | . . . . Corruption Blocked . | . . . . Overload Shots . | . . . . Overflow Damage 854 | . 390 383 81 Projectiles 25 | . 25 . . Explosions . | . . . . Melee 829 | . 365 383 81 Knockbacks 9 | . 6 3 . Impact 8 | . 5 3 . Kinetic . | . . . . Secondary 1 | . 1 . . Self-Inflicted Damage . | . . . . Shots . | . . . . Rammed . | . . . . Targets Rammed . | . . . . Kicked . | . . . . Crushed . | . . . . Highest Temperature 231 | . . . 231 Average Temperature 163 | . . . 163 Received Heat Transfer 644 | . 123 33 488 Siege Activations . | . . . . Martial Activations . | . . . . Shielding Activations . | . . . . Robots Disrupted . | . . . . Combat Hostiles . | . . . . Robots Corrupted 9 | . 8 1 . Combat Hostiles 4 | . 4 . . Parts Fried 21 | . 9 11 1 Impact Corruptions 32 | . 19 11 2 Robots Melted . | . . . . Combat Hostiles . | . . . . Parts Melted . | . . . . Heat Transferred . | . . . . Parts Sabotaged . | . . . . Parts Stolen . | . . . . Parts Stripped . | . . . . Power Chain Reactions . | . . . . Alert | -11 -10 -10 -10 ------- Run | Yrd Mat Min Sub Maximum Alert Level . | . . . . Low Security (%) 100 | 100 100 100 . Level 1 . | . . . . Level 2 . | . . . . Level 3 . | . . . . Level 4 . | . . . . Level 5 . | . . . . High Security . | . . . . Max Security . | . . . . Peak Influence 99 | . 99 40 . Initial . | . . . . Average 15 | . 26 3 . Influence Increases 577 | . 342 75 160 Destroy 0b10 Robot/C 340 | . 200 40 100 Destroy 0b10 Robot/NC 50 | . 25 25 . Destroy Leader 54 | . 44 10 . Successful Hack 4 | . 4 . . Disable Machine 8 | . 8 . . Destroy Structure 1 | . 1 . . Lose Combat Pursuer 120 | . 60 . 60 Influence Decreases 562 | . 342 75 145 Time Decay 509 | . 319 75 115 Lost Part 30 | . . . 30 Purge Threat 23 | . 23 . . Squads Dispatched . | . . . . Investigation . | . . . . Extermination . | . . . . Reinforcement . | . . . . Assault . | . . . . Garrison . | . . . . Intercept . | . . . . Searches Triggered . | . . . . Construction Impeded . | . . . . Haulers Reinforced . | . . . . Active Scanning Responses . | . . . . Cargo Convoy Interrupts . | . . . . Stealth | -11 -10 -10 -10 --------- Run | Yrd Mat Min Sub Distress Signals 1 | . 1 . . Communications Jammed . | . . . . Distress Signals . | . . . . Times Spotted 35 | . 19 2 14 Peak Tracking Total 4 | . 3 2 4 Tactical Retreats 7 | . 4 . 3 Traps | -11 -10 -10 -10 ------- Run | Yrd Mat Min Sub Traps Triggered 3 | . 1 2 . Indirectly . | . . . . Trap Hack Attempts . | . . . . Triggered . | . . . . Disarmed . | . . . . Reprogrammed . | . . . . Reused . | . . . . Traps Extracted . | . . . . Installed . | . . . . Triggered . | . . . . Machines | -11 -10 -10 -10 ---------- Run | Yrd Mat Min Sub Machines Disabled 2 | . 2 . . Max in Single Turn 1 | . 1 . . Machines Repaired . | . . . . Machines Dismantled . | . . . . Machines Sabotaged . | . . . . Overloaded Fab Kills . | . . . . Hacking | -11 -10 -10 -10 --------- Run | Yrd Mat Min Sub Machines Accessed 6 | . 3 1 2 Terminals 3 | . 3 . . Fabricators . | . . . . Repair Stations . | . . . . Recycling Units . | . . . . Scanalyzers . | . . . . Garrison Access . | . . . . Total Hacks 13 | . 10 1 2 Successful 11 | . 8 1 2 Failed 2 | . 2 . . Catastrophic . | . . . . Database Lockouts . | . . . . Manual 11 | . 11 . . Terminals 10 | . 10 . . Fabricators . | . . . . Repair Stations . | . . . . Recycling Units . | . . . . Scanalyzers . | . . . . Garrison Access . | . . . . Terminal Hacks 9 | . 6 1 2 Record 1 | . . . 1 Robot Analysis 3 | . 3 . . Open Door 2 | . . 1 1 Unreport Threat 1 | . 1 . . Locate Traps 2 | . 2 . . Fabricator Hacks . | . . . . Repair Station Hacks . | . . . . Recycling Unit Hacks . | . . . . Scanalyzer . | . . . . Garrison Access Hacks . | . . . . Unauthorized Hacks 2 | . 2 . . Terminals 2 | . 2 . . Botnet 2 | . 2 . . Fabricators . | . . . . Repair Stations . | . . . . Recycling Units . | . . . . Scanalyzers . | . . . . Garrison Access . | . . . . Data Cores Recovered . | . . . . Used . | . . . . Hacking Detections 2 | . 2 . . Full Trace Events . | . . . . Feedback Events . | . . . . Feedback Blocked . | . . . . Robot Schematics Acquired . | . . . . Robots Built . | . . . . Authchips . | . . . . Time . | . . . . Total Robot Build Rating . | . . . . Part Schematics Acquired . | . . . . Parts Built . | . . . . Authchips . | . . . . Time . | . . . . Total Part Build Rating . | . . . . Part Studies Acquired . | . . . . Parts Repaired . | . . . . Time . | . . . . Parts Recycled . | . . . . Recycled Matter . | . . . . Retrieved Matter . | . . . . Retrieved Components . | . . . . Parts Scanalyzed . | . . . . Part Schematics Acquired . | . . . . Parts Damaged . | . . . . Bothacking | -11 -10 -10 -10 ------------ Run | Yrd Mat Min Sub Used RIF Installer . | . . . . Robots Hacked . | . . . . Non-combat . | . . . . Combat . | . . . . Robot Hacks Applied . | . . . . Relay Couplers Released . | . . . . Fabnet Peak Effective % . | . . . . Robots Rewired . | . . . . Allies Hacked . | . . . . Hacks Repelled . | . . . . Allies | -11 -10 -10 -10 -------- Run | Yrd Mat Min Sub Total Allies 2 | . . 2 . Largest Group 2 | . . 2 . Highest-Rated Group 42 | . . 42 . Highest-Rated Ally 31 | . . 31 . Total Orders . | . . . . Ally Attacks . | . . . . Total Damage . | . . . . Kills . | . . . . Allies Corrupted . | . . . . Allies Melted . | . . . . Intel | -11 -10 -10 -10 ------- Run | Yrd Mat Min Sub Active Infowar (turns) 1695 | . 666 564 465 Sensors 1695 | . 666 564 465 Robot Analysis Total 3 | . 3 . . Derelict Logs Recovered 1 | . . 1 . Drone Launches . | . . . . Drone Recoveries . | . . . . Exploration | -11 -10 -10 -10 ------------- Run | Yrd Mat Min Sub Turns Passed 1790 | 59 702 564 465 Spaces Moved 1158 | 44 373 443 298 Core 16 | 12 . . 4 Treads . | . . . . Legs 1142 | 32 373 443 294 Wheels . | . . . . Hover . | . . . . Flight . | . . . . Fastest Speed 50 | 50 120 120 120 Average Speed 121 | 104 120 120 129 Slowest Speed 250 | 120 120 120 250 Overloaded Moves . | . . . . Propulsion Burnouts . | . . . . Robots Hopped . | . . . . Potential Cave-ins . | . . . . Cave-ins Triggered . | . . . . Exploration Rate (%) 44 | 3 69 90 16 Regions Visited 3 Branch Regions 2 Pre-discovered Areas . | . . . . Known Exits Taken 3 | 1 1 1 . Unknown Exits Taken . | . . . . Scrap Searched 8 | . . 3 5 Spaces Dug 1 | . 1 . . Terrain Destroyed 1 | . 1 . . Melee 1 | . 1 . . Projectile . | . . . . AOE . | . . . . Terrain Rammed . | . . . . Walls Destroyed . | . . . . Machines Disabled . | . . . . Actions | -11 -10 -10 -10 --------- Run | Yrd Mat Min Sub Total 1393 | 53 550 454 336 Wait 138 | . 122 . 16 Move 1155 | 43 372 442 298 Hop . | . . . . Pick Up 6 | 3 3 . . Fast Attach 9 | 6 2 1 . Attach . | . . . . Detach . | . . . . Swap 9 | 1 7 1 . Drop 6 | . 6 . . Fire . | . . . . Melee 70 | . 38 10 22 Ram . | . . . . Kick . | . . . . Crush . | . . . . Escape Stasis . | . . . . Rewire . | . . . . Trap . | . . . . Miscellaneous . | . . . . Route ------- -11/Scrapyard -10/Materials (discovered 3 exits: *Mat x2 / *Min) -10/Mines (discovered 3 exits: *Mat x2 / *Sub) -10/Subcaves History --------- Turn | Location | Event 10 | -11/Scrapyard | Identified exit to Materials 10 | -11/Scrapyard | Discovered exit to Materials (range 16) 60 | -11/Scrapyard | Entered Materials 60 | -10/Materials | Evolved 1 slot: Utility x1 310 | -10/Materials | Build established: Hacker-Mutant 327 | -10/Materials | Identified exit to Materials 327 | -10/Materials | Discovered exit to Materials (range 8) 708 | -10/Materials | Discovered exit to Materials (range 3) 748 | -10/Materials | Identified exit to Mines 748 | -10/Materials | Discovered exit to Mines (range 7) 762 | -10/Materials | Entered Mines 899 | -10/Mines | Discovered exit to Materials (range 15) 1071 | -10/Mines | Found a hidden stash of uninstalled traps 1148 | -10/Mines | Met a Derelict who couldn't figure out how to use a Trap Extractor 1196 | -10/Mines | Discovered exit to Materials (range 15) 1281 | -10/Mines | Learned 8 Materials zone layouts 1311 | -10/Mines | Identified exit to Subcaves 1311 | -10/Mines | Discovered exit to Subcaves (range 14) 1326 | -10/Mines | Entered Subcaves 1327 | -10/Subcaves | Approached by a straggling Scientist 1651 | -10/Subcaves | Shifting Twisted Machinery released Slug Cannon 1651 | -10/Subcaves | Shifting Twisted Machinery released Sub. Beam Cannon 1699 | -10/Subcaves | Core integrity fell below 50% 1788 | -10/Subcaves | Core integrity fell below 20% 1791 | -10/Subcaves | Destroyed by H7-DR5(R) with Subdweller Beam Cannon Last Messages --------------- Sub. Beam Cannon falls loose from the Twisted Machinery. 01659_ Searching scrap... 01659_ Found Riot Gun. 01659_ Found Sub. Beam Cannon. 01659_ Found 31 Matter. 01696_ S-10 Pest destroyed. 01696_ Maul follow-up attack on S-10 Pest. 01696_ S-10 Pest suffers critical hit (Smash). 01696_ Destroyed Lgt. Ion Engine. 01696_ Destroyed Flight Unit. 01696_ S-10 Pest system corrupted by crushing effect. 01696_ Flight Unit fried. 01696_ S-10 Pest destroyed. 01705_ Destroyed Flight Unit. 01707_ Aluminum Leg destroyed. 01710_ S-10 Pest destroyed. 01781_ Aluminum Leg destroyed. 01787_ Critical hit (Meltdown: +160). 01789_ Ion Engine destroyed. 01789_ Critical hit (Meltdown: +160). Map ----- +----------------------------------------------------+ | ##?????????????## ##????????????????????? | | #?????????????# ###### ?????????????? | | ######?####?### ????????????? | | #?##% "###""### ????????????? | | ###%*[""# ### ????????????? | | ##"[ #% ## ## ##???????????????????? | | ###&" # ] | "##%### ##???????????????????? | | #?# [ ]] ^ # ## ##??????????????????? | | #?#" %# ## ##=%# #??????????????????? | | # ##?#"" ### # # % #??????##?????????????? | | ##?### ## # * # #????? #?????????????? | | #???##### # % ### #??? ??????????????? | | # #??##" # #"" #???# #??# ???????????????? | | ####?##""]# ###< #????? #?# ???????????????? | | ###%][ # ## #????? ## ????????????????? | | ##""" # "### ##????" "?????????????????? | | ##"]###"$###?# #####"" """?????????????????? | | #####?####???## """#?????????????????? | | #?????????????# " """ #?????????????????? | | ####?????????????# """""#?????????????????? | | #????????????????# "" "##????????????????? | | #????????????????# "" " "???????????????? | | ##???????????????# "" ""????????????????? | | ##??????????????#/ R" # "????????????????? | | ##?????????#####%[ "" ###"???????????????? | | # #??######## ]! @ R" "" ???????????????? | | ## #### # # "" "#" ???????????????? | | ?# """"#?????????????????? | | ?## ## #########?????????????????? | | ?# ######## ####;###?????????????????????????? | | ?####??????######??###???????????????????????????? | | ?????????????????????????????????????????????????? | | ?????????????????????????????????????????????????? | | ?????????????????????????????????????????????????? | | ?????????????????????????????????????????????????? | | ?????????????????????????????????????????????????? | | ?????????????????????????????????????????????????? | | ?????????????????????????????????????????????????? | | ?????????????????????????????????????????????????? | | ?????????????????????????????????????????????????? | | ?????????????????????????????????????????????????? | | ?????????????????????????????????????????????????? | | ?????????????????????????????????????????????????? | | ?????????????????????????????????????????????????? | | ?????????????????????????????????????????????????? | | ?????????????????????????????????????????????????? | | | | | | | | | +----------------------------------------------------+ Best States ------------- Heat Dissipation 25 Energy Generation 10 Energy Capacity 250 Matter Stores 300 Matter Capacity 300 Sight Range 16 Robot Scan Range 14 Terrain Scan Density 10 Resistance: KI 35 Resistance: TH 35 Resistance: EX 35 Resistance: EM 35 Resistance: I 35 Resistance: S 35 Resistance: P 35 Utility Shielding 33 Evasion (%) 55 Offensive Hacking 20 Item Schematics ----------------- None Robot Schematics ------------------ None Fabricated ------------ Nothing Repaired ---------- Nothing Studied --------- None Alien Tech Used ----------------- None Achievements -------------- None Challenges ------------ None Game ------ Seed GaussActuatorAutobeam Manual? 0 Play Time 00:12:40 Cumulative 179.1 hours Start 2026.02.21 @ 19:30:55 End 2026.02.21 @ 19:40:53 Sessions 1 Manual Loads 0 Difficulty Explorer Special Mode None Game No. 329 Rogue 216 Adventurer 15 Explorer 98 Win Type - Total 14 Types 14/0/0/0/0/0/0/0/0/0 Lore% 56 Gallery% 59 Achievement% 47 Wizard Run 0 Options --------- Layout 0 ASCII 0 Keyboard 1 Movement Numpad Keybinds 0 Fullscreen 2 Font 18/SmallcapsGlow Map View 76x50 Zoom Use 0% Tactical HUD 1 Map Filters NONE Filters NONE Steam 1 RUN: 017f8705-4fe7-4b08-b2c7-a8f3c8a0bc21